bitfinex-derivatives/quotes_SOLF0:USTF0_20250424
["timestamp","ask_amount","ask_price","bid_price","bid_amount"]
[1745462250165,33.15872566,150.14,150.1,13.13632566]
[1745462250564,6.659,150.13,150.1,6.47652566]
[1745462251263,6.659,150.13,150.09,6.6602]
[1745462251865,6.6592,150.12,150.09,6.6602]
[1745462252063,6.47652566,150.12,150.08,6.47652566]
[1745462252264,33.15872566,150.14,150.08,6.47652566]
[1745462252568,26.6822,150.14,150.1,6.47652566]
[1745462252866,1.9822,150.14,150.1,6.47652566]
[1745462253067,1.9822,150.14,150.11,6.6593]
[1745462253269,1.9822,150.14,150.1,6.47652566]
[1745462253466,6.47652566,150.15,150.1,6.47652566]
[1745462254667,6.47652566,150.16,150.1,6.47652566]
[1745462254861,6.47652566,150.16,150.12,6.47652566]
[1745462255858,13.13392566,150.16,150.12,13.13552566]
[1745462256370,13.13392566,150.16,150.13,6.6586]
[1745462257470,6.47652566,150.14,150.08,28.7656]
[1745462257766,6.47652566,150.14,150.08,35.24212566]
[1745462257958,13.13502566,150.14,150.08,35.24212566]
[1745462258670,13.13502566,150.14,150.1,6.6596]
[1745462259272,11.53624242,150.15,150.08,28.7656]
[1745462259564,11.53624242,150.15,150.08,24.7]
[1745462259766,6.6599,150.11,150.07,6.6612]
[1745462260267,36.21624242,150.13,150.05,24.68]
[1745462260470,6.6593,150.12,150.05,24.68]
[1745462260869,36.21624242,150.13,150.05,24.68]
[1745462261070,6.6599,150.11,150.07,6.6611]
[1745462261271,36.21624242,150.13,150.05,24.68]
[1745462261571,6.6607,150.09,150.05,24.68]
[1745462261871,36.21624242,150.13,150.05,24.68]
[1745462262067,24.68,150.13,150.05,24.68]
[1745462262274,31.339,150.13,150.05,24.68]
[1745462262469,11.53624242,150.15,150.06,11.53624242]
[1745462262771,11.53624242,150.15,150.08,6.6608]
[1745462263172,11.53624242,150.15,150.05,24.68]
[1745462263367,6.6597,150.11,150.07,6.661]
[1745462264075,11.53624242,150.13,150.05,24.68]
[1745462264271,24.68,150.12,150.05,24.68]
[1745462264662,6.6601,150.1,150.06,6.6618]
[1745462265267,6.6607,150.09,150.06,6.6618]
[1745462265473,6.6607,150.09,150.05,24.68]
[1745462265671,11.53624242,150.11,150.05,24.68]
[1745462266172,6.6603,150.1,150.07,6.6611]
[1745462266872,18.19604242,150.11,150.08,6.6609]
[1745462267173,6.6598,150.11,150.08,6.6609]
[1745462267373,24.68,150.12,150.05,24.68]
[1745462267672,6.6601,150.1,150.07,6.6611]
[1745462268372,6.6601,150.1,150.08,6.6609]
[1745462268677,6.6599,150.11,150.08,6.6609]
[1745462269078,6.6599,150.11,150.05,24.68]
[1745462270175,6.6601,150.1,150.05,24.68]
[1745462270777,24.68,150.12,150.05,24.68]
[1745462270976,6.6599,150.11,150.07,6.6613]
[1745462271274,24.7,150.15,150.08,11.53624242]
[1745462271475,24.7,150.16,150.08,11.53624242]
[1745462271775,24.7,150.16,150.06,11.53624242]
[1745462271976,11.53624242,150.15,150.06,11.53624242]
[1745462272170,11.53624242,150.15,150.09,6.6601]
[1745462272575,6.6588,150.13,150.09,6.6601]
[1745462273275,6.6588,150.13,150.1,6.66]
[1745462274079,6.6584,150.14,150.1,6.66]
[1745462275477,6.6584,150.14,150.11,6.6595]
[1745462276878,18.19424242,150.15,150.12,6.6591]
[1745462278077,6.6583,150.14,150.11,6.6594]
[1745462278380,6.6583,150.14,150.12,6.6591]
[1745462279181,11.53624242,150.15,150.12,6.6591]
[1745462279182,18.19424242,150.15,150.12,6.6591]
[1745462279380,24.7,150.16,150.09,24.68]
[1745462280481,31.3575,150.16,150.13,6.6585]
[1745462280875,24.7,150.16,150.09,24.68]
[1745462281080,24.56,150.19,150.12,11.53624242]
[1745462281282,7.37804075,150.18,150.14,7.37804075]
[1745462281582,14.03484075,150.18,150.14,14.03594075]
[1745462282881,6.657,150.17,150.14,14.03594075]
[1745462283080,6.657,150.17,150.15,6.6578]
[1745462283281,7.37804075,150.18,150.15,6.6578]
[1745462283780,14.03474075,150.18,150.15,6.6578]
[1745462283981,24.56,150.19,150.16,6.6571]
[1745462284479,31.2164,150.19,150.16,6.6571]
[1745462285883,24.56,150.19,150.14,7.37804075]
[1745462286077,7.37804075,150.16,150.11,7.37804075]
[1745462286481,14.03584075,150.16,150.13,6.6587]
[1745462286784,7.37804075,150.16,150.11,7.37804075]
[1745462287082,6.6583,150.14,150.11,14.03744075]
[1745462288081,14.03634075,150.14,150.11,6.6594]
[1745462288482,14.03634075,150.14,150.12,6.6591]
[1745462290387,14.03634075,150.14,150.11,6.6595]
[1745462290680,6.6589,150.13,150.09,7.37804075]
[1745462291079,7.37804075,150.12,150.07,35.88114075]
[1745462291279,1.9406,150.19,150.07,24.56]
[1745462291280,7.37804075,150.1,150.07,24.56]
[1745462291682,7.37804075,150.1,150.05,7.37804075]
[1745462292482,7.37804075,150.08,150.03,7.37804075]
[1745462292687,7.37804075,150.06,150.02,2.0709]
[1745462293084,14.03994075,150.06,150.03,6.6631]
[1745462293388,7.37804075,150.06,150.03,6.6631]
[1745462294284,7.37804075,150.08,150.02,9.44894075]
[1745462294681,7.37804075,150.08,150.04,7.37804075]
[1745462295284,7.37804075,150.08,150.07,6.6614]
[1745462295580,7.37804075,150.1,150.07,6.6614]
[1745462296485,14.03814075,150.1,150.07,6.6614]
[1745462296787,7.37804075,150.08,150.04,7.37804075]
[1745462297284,11.54570382,150.09,150.02,2.0709]
[1745462297482,3.9726,150.14,149.96,2.0047]
[1745462297483,36.10570382,150.08,149.96,2.0047]
[1745462297682,18.20910382,150.03,149.98,6.6651]
[1745462297890,11.54570382,150.03,149.95,28.4543]
[1745462298291,6.6637,150.02,149.97,6.6655]
[1745462298790,36.10570382,150.03,149.97,6.6655]
[1745462298987,36.10570382,150.03,149.96,6.6662]
[1745462299987,6.6641,150.01,149.97,6.6658]
[1745462300288,36.10570382,150.03,149.95,28.4543]
[1745462300587,11.54570382,150.01,149.95,24.56]
[1745462300890,11.54570382,150.01,149.92,527.56]
[1745462300891,11.54570382,150.01,149.92,552.14]
[1745462301091,6.6666,149.96,149.91,8.7025]
[1745462301589,6.6662,149.97,149.92,6.668]
[1745462302692,24.58,149.98,149.91,13.57980382]
[1745462302892,24.58,149.98,149.91,2.0341]
[1745462304090,6.6659,149.97,149.92,6.6679]
[1745462304287,6.6659,149.97,149.91,2.0341]
[1745462304891,24.58,149.98,149.91,2.0341]
[1745462305493,24.58,149.98,149.94,6.6668]
[1745462305792,24.58,149.98,149.91,2.0341]
[1745462306094,24.58,149.98,149.95,6.6664]
[1745462306593,42.78990382,150.01,149.92,11.54570382]
[1745462306795,42.78990382,150.01,149.93,24.58]
[1745462307194,42.78990382,150.01,149.96,6.666]
[1745462307394,42.78990382,150.01,149.93,24.58]
[1745462307696,42.78990382,150.01,149.96,6.6658]
[1745462307896,6.6646,150.0,149.96,6.6658]
[1745462309296,42.78990382,150.01,149.93,24.58]
[1745462310294,24.58,150.01,149.93,24.58]
[1745462311101,24.58,150.01,149.94,11.54570382]
[1745462311698,24.58,150.01,149.98,6.6653]
[1745462311896,36.12570382,150.01,149.93,24.58]
[1745462312598,6.6652,149.99,149.95,6.6664]
[1745462312798,24.58,150.01,149.93,36.12570382]
[1745462312997,31.2443,150.01,149.96,6.6658]
[1745462313298,31.2443,150.01,149.93,36.12570382]
[1745462314099,6.6645,150.0,149.93,36.12570382]
[1745462314303,24.58,150.01,149.97,6.6657]
[1745462314503,38.93890382,150.05,149.95,11.54570382]
[1745462314800,6.6633,150.03,149.96,2.0415]
[1745462315301,6.6633,150.03,149.99,6.6647]
[1745462315501,6.6627,150.04,149.97,11.54570382]
[1745462315698,6.6627,150.04,149.97,13.49670382]
[1745462316000,6.6635,150.03,149.97,13.49670382]
[1745462317201,25.34,150.05,149.99,11.54570382]
[1745462318304,32.0025,150.05,150.01,6.6637]
[1745462319305,25.34,150.05,150.0,6.6643]
[1745462319504,25.34,150.05,149.98,25.34]
[1745462319906,6.6629,150.04,150.0,6.6641]
[1745462320208,25.34,150.05,150.0,6.6641]
[1745462320404,6.6635,150.03,149.99,6.6648]
[1745462320908,6.6628,150.04,150.0,6.6642]
[1745462321606,6.6628,150.04,149.98,25.34]
[1745462321607,6.6628,150.04,150.01,6.664]
[1745462322310,6.6628,150.04,150.0,6.6643]
[1745462323513,6.6628,150.04,150.01,6.664]
[1745462324516,6.6632,150.03,150.0,6.6643]
[1745462324808,25.34,150.05,150.0,6.6643]
[1745462325008,25.34,150.05,150.02,6.6633]
[1745462325414,25.34,150.05,149.99,11.54570382]
[1745462326014,32.0025,150.05,150.01,6.6636]
[1745462327817,32.0025,150.05,150.02,6.6635]
[1745462328014,25.34,150.05,149.99,11.54570382]
[1745462328713,25.34,150.05,150.02,6.6632]
[1745462329214,8.6193,150.06,150.02,6.6632]
[1745462329423,6.6624,150.05,150.02,6.6632]
[1745462330521,6.6628,150.04,150.01,6.6639]
[1745462330818,6.6628,150.04,149.99,7.39082303]
[1745462331014,14.05362303,150.04,149.99,7.39082303]
[1745462331313,14.05362303,150.04,150.01,6.664]
[1745462331920,7.39082303,150.04,150.01,6.664]
[1745462333124,7.39082303,150.04,149.98,32.73082303]
[1745462333923,7.39082303,150.04,149.99,7.39082303]
[1745462335121,7.39082303,150.04,150.01,6.6637]
[1745462335425,14.05362303,150.04,150.01,6.6637]
[1745462335925,14.05362303,150.04,150.0,6.6643]
[1745462336424,14.05362303,150.04,149.99,7.39082303]
[1745462337224,14.05362303,150.04,150.01,6.6639]
[1745462337725,7.39082303,150.04,150.01,6.6639]
[1745462338027,9.34812303,150.06,150.01,7.39082303]
[1745462338326,16.00992303,150.06,150.02,6.6634]
[1745462338825,16.00992303,150.06,149.98,25.34]
[1745462338826,7.39082303,150.04,149.99,7.39082303]
[1745462339027,7.39082303,150.04,150.01,6.6639]
[1745462341227,14.05352303,150.04,150.01,6.6639]
[1745462342027,7.39082303,150.04,149.99,7.39082303]
[1745462342626,14.05362303,150.04,149.99,7.39082303]
[1745462343528,14.05362303,150.04,150.0,6.6642]
[1745462344128,6.6632,150.03,150.0,6.6642]
[1745462344326,7.39082303,150.04,149.98,25.34]
[1745462344524,7.39082303,150.04,149.99,7.39082303]
[1745462344726,14.05372303,150.04,149.99,7.39082303]
[1745462344928,7.39082303,150.04,149.99,7.39082303]
[1745462345225,6.6632,150.03,149.99,7.39082303]
[1745462345825,9.34812303,150.06,149.99,7.39082303]
[1745462347031,7.39082303,150.04,149.99,7.39082303]
[1745462347731,6.6634,150.03,150.0,6.6645]
[1745462350730,6.6636,150.02,149.99,14.05552303]
[1745462351229,25.12,150.05,149.98,25.34]
[1745462351434,7.39082303,150.0,149.94,32.51082303]
[1745462351631,7.39082303,149.98,149.94,25.12]
[1745462351931,14.05712303,149.96,149.91,25.12]
[1745462352132,14.05712303,149.96,149.9,32.51082303]
[1745462352528,14.05712303,149.96,149.92,6.6678]
[1745462352731,7.39082303,149.94,149.9,25.12]
[1745462353626,7.39082303,149.94,149.9,31.7887]
[1745462353833,7.39082303,149.94,149.9,25.12]
[1745462355131,7.39082303,149.94,149.9,31.7885]
[1745462355332,7.39082303,149.94,149.9,25.12]
[1745462355834,7.39082303,149.94,149.91,6.6682]
[1745462357437,7.39082303,149.94,149.92,6.6679]
[1745462357636,32.51082303,149.97,149.91,7.39082303]
[1745462358337,39.17672303,149.97,149.93,6.6673]
[1745462359036,39.17672303,149.97,149.94,6.6671]
[1745462360140,32.51082303,149.97,149.95,6.6666]
[1745462360542,7.39082303,149.97,149.93,7.39082303]
[1745462360842,7.39082303,149.99,149.93,7.39082303]
[1745462361035,7.39082303,149.99,149.9,25.12]
[1745462361239,7.39082303,149.99,149.93,7.39082303]
[1745462361444,14.05592303,149.99,149.95,6.6665]
[1745462364748,6.6657,149.98,149.95,6.6665]
[1745462364949,7.39082303,149.99,149.94,6.6669]
[1745462365144,7.39082303,149.97,149.94,6.6669]
[1745462365348,14.05662303,149.97,149.94,6.6669]
[1745462367644,7.39082303,149.97,149.93,7.39082303]
[1745462367849,7.39082303,149.99,149.96,6.6663]
[1745462368147,7.39082303,149.99,149.93,7.39082303]
[1745462368148,14.05602303,149.99,149.93,7.39082303]
[1745462368351,14.05602303,149.99,149.95,7.39082303]
[1745462369251,14.05602303,149.99,149.96,6.666]
[1745462369452,6.6654,149.98,149.95,7.39082303]
[1745462369951,6.6654,149.98,149.95,14.05732303]
[1745462370254,14.05592303,149.99,149.95,14.05732303]
[1745462370548,14.05592303,149.99,149.96,6.6661]
[1745462371152,14.05592303,149.99,149.95,7.39082303]
[1745462371153,14.05592303,149.99,149.95,14.05732303]
[1745462371549,14.05592303,149.99,149.95,7.39082303]
[1745462372052,14.05592303,149.99,149.9,25.12]
[1745462372248,14.05592303,149.99,149.94,7.39082303]
[1745462372649,14.05592303,149.99,149.95,6.6664]
[1745462374854,14.05592303,149.99,149.96,6.6662]
[1745462375348,27.0259,150.0,149.98,6.6653]
[1745462375349,25.14,150.0,149.98,6.6653]
[1745462375549,7.39082303,150.01,149.98,6.6653]
[1745462375854,14.05522303,150.01,149.98,6.6653]
[1745462378255,7.39082303,150.01,149.96,7.39082303]
[1745462378554,7.39082303,149.99,149.94,32.27082303]
[1745462379155,14.05602303,149.99,149.96,6.6659]
[1745462379654,6.6659,149.97,149.95,6.6667]
[1745462380253,7.39082303,149.99,149.96,6.6662]
[1745462380954,14.05602303,149.99,149.96,6.6662]
[1745462381951,14.05602303,149.99,149.97,6.6658]
[1745462382159,7.39082303,149.99,149.95,7.39082303]
[1745462382555,6.6647,150.0,149.95,7.39082303]
[1745462383056,6.6651,149.99,149.95,7.39082303]
[1745462384256,6.6651,149.99,149.96,6.6662]
[1745462384652,7.39082303,149.99,149.94,24.88]
[1745462385257,6.6661,149.97,149.94,24.88]
[1745462386961,6.6663,149.96,149.94,24.88]
[1745462388959,6.6655,149.98,149.95,14.05742303]
[1745462389162,24.88,150.0,149.95,7.39082303]
[1745462389368,7.39082303,150.01,149.97,7.39082303]
[1745462390263,6.6646,150.0,149.97,14.05662303]
[1745462390464,6.6646,150.0,149.97,7.39082303]
[1745462390667,7.39082303,149.99,149.94,32.27082303]
[1745462390963,6.6655,149.98,149.94,38.93772303]
[1745462391764,7.39082303,149.99,149.94,32.27082303]
[1745462392066,7.39082303,149.99,149.94,7.39082303]
[1745462392267,6.6661,149.97,149.94,7.39082303]
[1745462392764,6.6661,149.97,149.94,14.05792303]
[1745462393466,7.39082303,149.99,149.96,6.666]
[1745462393659,7.39082303,150.0,149.96,6.666]
[1745462395269,6.665,149.99,149.96,6.666]
[1745462396772,6.6642,150.01,149.96,7.39082303]
[1745462397271,7.39082303,150.02,149.96,7.39082303]
[1745462398173,7.39082303,150.02,149.96,14.05702303]
[1745462398773,6.6648,150.0,149.96,14.05702303]
[1745462399673,6.6648,150.0,149.97,6.6657]
[1745462400170,7.39082303,149.98,149.91,24.88]
[1745462400368,7.39082303,149.96,149.91,32.27082303]
[1745462400773,6.6668,149.95,149.92,6.6678]
[1745462403371,6.6672,149.94,149.91,31.5483]
[1745462403576,7.39082303,149.94,149.89,7.39082303]
[1745462403973,7.39082303,149.94,149.9,6.6686]
[1745462404173,7.39082303,149.94,149.88,28.5747]
[1745462404371,7.39082303,149.92,149.88,34.00132303]
[1745462404678,6.6689,149.91,149.87,14.06082303]
[1745462404872,7.39082303,149.9,149.85,24.6]
[1745462405076,6.6697,149.89,149.85,38.66172303]
[1745462405474,7.39082303,149.9,149.85,31.99082303]
[1745462405680,7.39082303,149.88,149.83,7.39082303]
[1745462406578,6.6705,149.87,149.83,14.06262303]
[1745462407079,7.39082303,149.88,149.83,14.06262303]
[1745462407779,14.06072303,149.88,149.83,14.06262303]
[1745462408181,7.39082303,149.88,149.83,7.39082303]
[1745462408381,24.6,149.9,149.85,7.39082303]
[1745462408580,31.99082303,149.9,149.85,7.39082303]
[1745462408881,38.66022303,149.9,149.85,14.06172303]
[1745462409181,31.99082303,149.9,149.85,7.39082303]
[1745462409376,6.6698,149.89,149.85,14.06172303]
[1745462409779,31.99082303,149.9,149.85,7.39082303]
[1745462409982,31.99082303,149.92,149.87,7.39082303]
[1745462410181,7.39082303,149.94,149.89,7.39082303]
[1745462410577,7.39082303,149.94,149.88,7.39082303]
[1745462410977,6.6683,149.92,149.88,14.06032303]
[1745462411181,7.39082303,149.94,149.88,7.39082303]
[1745462411481,14.05922303,149.92,149.88,6.6696]
[1745462412784,14.05922303,149.92,149.89,6.6693]
[1745462413282,7.39082303,149.92,149.87,7.39082303]
[1745462413687,14.05892303,149.92,149.86,24.6]
[1745462413985,14.05892303,149.92,149.88,6.6696]
[1745462415385,7.39082303,149.92,149.89,6.6691]
[1745462415584,7.39082303,149.92,149.87,7.39082303]
[1745462416387,7.39082303,149.94,149.89,7.39082303]
[1745462416884,6.6677,149.93,149.89,7.39082303]
[1745462417181,6.6677,149.93,149.89,14.05982303]
[1745462418686,6.62196701,149.93,149.89,14.05982303]
[1745462418887,6.6681,149.92,149.89,6.669]
[1745462419090,14.05892303,149.92,149.88,14.06042303]
[1745462419587,7.39082303,149.9,149.86,31.99082303]
[1745462419791,7.39082303,149.9,149.86,24.6]
[1745462419986,7.39082303,149.88,149.83,24.6]
[1745462420379,7.39082303,149.88,149.83,31.2719]
[1745462420782,7.39082303,149.86,149.8,31.99082303]
[1745462421287,14.06162303,149.86,149.82,6.6724]
[1745462421688,14.06162303,149.86,149.8,31.99082303]
[1745462421892,3.875,149.9,149.8,31.99082303]
[1745462421893,14.06022303,149.89,149.84,7.39082303]
[1745462422095,9.32342303,149.9,149.86,7.39082303]
[1745462422297,7.39082303,149.9,149.87,6.6699]
[1745462423397,31.99082303,149.91,149.88,6.6698]
[1745462423590,31.99082303,149.91,149.86,7.39082303]
[1745462424093,31.99082303,149.91,149.87,6.67]
[1745462424285,31.99082303,149.91,149.86,7.39082303]
[1745462424593,6.6692,149.9,149.86,14.06122303]
[1745462424793,6.6692,149.9,149.86,7.39082303]
[1745462425095,31.99082303,149.91,149.86,7.39082303]
[1745462425394,38.65952303,149.91,149.88,6.6698]
[1745462425593,38.65952303,149.91,149.86,7.39082303]
[1745462426594,38.65952303,149.91,149.87,6.6701]
[1745462427296,6.669,149.9,149.87,6.6701]
[1745462429998,38.65952303,149.91,149.88,6.6698]
[1745462430593,6.669,149.9,149.87,6.6702]
[1745462430794,31.99082303,149.91,149.85,7.39082303]
[1745462431194,6.6692,149.9,149.87,6.6702]
[1745462433898,6.6696,149.89,149.86,6.6703]
[1745462436102,7.39082303,149.87,149.78,531.9854]
[1745462436301,7.39082303,149.87,149.8,7.39082303]
[1745462436702,6.671,149.86,149.81,6.6727]
[1745462437004,7.39082303,149.85,149.81,6.6727]
[1745462437207,14.06212303,149.85,149.81,6.6727]
[1745462437504,14.06212303,149.85,149.8,6.6732]
[1745462438199,14.06212303,149.85,149.81,6.6728]
[1745462439104,7.39082303,149.85,149.82,6.6724]
[1745462439307,7.39082303,149.89,149.83,7.39082303]
[1745462440401,6.6703,149.87,149.84,6.6713]
[1745462441707,6.67,149.88,149.84,6.6713]
[1745462442208,6.6704,149.87,149.84,6.6713]
[1745462442404,7.39082303,149.89,149.84,6.6713]
[1745462442904,14.06032303,149.89,149.82,32.49082303]
[1745462443402,14.06032303,149.89,149.85,6.6709]
[1745462444507,6.6695,149.89,149.85,6.6709]
[1745462446105,3.8614,149.95,149.82,25.1]
[1745462446304,27.0055,149.95,149.89,7.39082303]
[1745462446607,27.0055,149.95,149.91,7.39082303]
[1745462446608,6.6672,149.94,149.91,7.39082303]
[1745462446907,6.6672,149.94,149.9,6.6688]
[1745462447806,6.6672,149.94,149.9,14.05962303]
[1745462448302,33.6724,149.95,149.91,6.6684]
[1745462448709,33.6724,149.95,149.9,7.39082303]
[1745462448908,33.6724,149.95,149.91,6.6684]
[1745462449208,6.6672,149.94,149.9,7.39082303]
[1745462449408,34.39632303,149.95,149.9,14.05962303]
[1745462451511,6.6675,149.94,149.9,6.6688]
[1745462451804,6.6675,149.94,149.9,14.05962303]
[1745462452614,6.6675,149.94,149.91,6.6685]
[1745462452907,41.06302303,149.95,149.91,6.6685]
[1745462454213,6.6672,149.94,149.91,6.6685]
[1745462455010,6.6672,149.94,149.9,14.05962303]
[1745462455212,6.6678,149.93,149.89,7.39082303]
[1745462455615,6.6685,149.91,149.88,25.1]
[1745462455812,7.39082303,149.91,149.88,25.1]
[1745462456011,7.39082303,149.91,149.86,7.39082303]
[1745462456514,6.6688,149.91,149.87,6.6701]
[1745462459711,6.6699,149.88,149.86,7.39082303]
[1745462459914,6.6699,149.88,149.83,7.39082303]
[1745462460118,6.669,150.04,149.86,7.39082303]
[1745462460318,11.33492303,150.05,150.0,7.39082303]
[1745462461323,3.9441,150.05,149.99,6.6649]
[1745462462118,3.9441,150.05,150.0,6.6644]
[1745462462319,3.9441,150.05,149.97,36.64916141]
[1745462462520,3.9441,150.05,150.01,6.6638]
[1745462463616,1.9964,150.05,150.02,6.6635]
[1745462463820,25.1,150.06,150.01,11.54916141]
[1745462464025,25.1,150.06,149.99,11.54916141]
[1745462465223,25.1,150.06,150.02,6.6632]
[1745462465422,25.1,150.06,149.99,11.54916141]
[1745462465922,25.1,150.06,149.97,36.64916141]
[1745462466526,31.7621,150.06,150.0,6.6642]
[1745462466728,25.1,150.06,149.97,36.64916141]
[1745462466928,25.1,150.06,149.97,25.1]
[1745462467128,25.1,150.06,150.01,6.6636]
[1745462467625,25.1,150.06,150.02,6.6635]
[1745462468732,31.7619,150.06,150.02,6.6635]
[1745462468930,31.7619,150.06,150.01,6.664]
[1745462470126,25.1,150.06,150.02,6.6634]
[1745462470733,31.762,150.06,150.02,6.6634]
[1745462470934,25.1,150.06,149.97,36.64916141]
[1745462472336,6.663,150.04,150.0,6.6642]
[1745462473636,6.6638,150.02,149.98,6.6652]
[1745462473829,25.1,150.06,149.97,36.64916141]
[1745462474234,6.6624,150.05,150.01,6.6637]
[1745462474530,6.6624,150.05,149.99,11.54916141]
[1745462475033,25.1,150.06,149.98,11.54916141]
[1745462475233,25.1,150.06,149.99,6.6649]
[1745462475638,6.6634,150.03,149.99,6.6649]
[1745462476139,25.1,150.06,149.98,6.6652]
[1745462476837,6.6639,150.02,149.98,6.6652]
[1745462477139,11.54916141,150.05,149.97,25.1]
[1745462477339,6.6645,150.0,149.97,25.1]
[1745462477734,11.54916141,150.05,149.96,11.54916141]
[1745462478040,25.1,150.06,149.94,11.54916141]
[1745462478041,11.54916141,150.03,149.94,11.54916141]
[1745462478236,24.78,150.02,149.94,11.54916141]
[1745462478740,1.95,150.04,149.96,11.54916141]
[1745462479038,1.95,150.04,149.98,6.6651]
[1745462480339,6.6643,150.01,149.98,6.6651]
[1745462480639,24.78,150.05,149.98,11.54916141]
[1745462481239,6.6634,150.03,150.0,6.6643]
[1745462482042,6.6636,150.02,149.99,6.6648]
[1745462482540,6.6636,150.02,149.98,6.6651]
[1745462482735,24.78,150.05,149.97,36.32916141]
[1745462482932,24.78,150.05,149.99,6.6647]
[1745462483735,6.6639,150.02,149.99,6.6647]
[1745462484140,24.78,150.05,149.97,42.99486141]
[1745462484340,24.78,150.05,149.97,31.4457]
[1745462484941,6.6643,150.01,149.97,31.4457]
[1745462485539,6.6645,150.0,149.97,24.78]
[1745462486940,6.6641,150.01,149.97,42.99486141]
[1745462487141,24.78,150.05,149.97,36.32916141]
[1745462487442,6.6649,150.0,149.98,7.39321497]
[1745462488538,6.6649,150.0,149.97,31.4458]
[1745462488843,7.39321497,150.03,149.97,24.78]
[1745462489045,7.39321497,150.03,149.98,7.39321497]
[1745462489243,6.6644,150.01,149.98,7.39321497]
[1745462489748,6.6645,150.0,149.97,24.78]
[1745462489948,7.39321497,149.99,149.93,3.93]
[1745462490241,6.6662,149.97,149.93,11.32321497]
[1745462490446,32.17321497,150.01,149.95,7.39321497]
[1745462491247,32.17321497,150.01,149.97,7.39321497]
[1745462492148,32.17321497,150.01,149.93,3.93]
[1745462492349,32.17321497,150.01,149.96,7.39321497]
[1745462493347,32.17321497,150.01,149.93,3.93]
[1745462493551,34.21611497,150.01,149.94,7.39321497]
[1745462493747,34.21611497,150.01,149.96,7.39321497]
[1745462494051,6.6653,149.99,149.96,7.39321497]
[1745462497558,6.6654,149.98,149.96,7.39321497]
[1745462497754,6.6654,149.98,149.93,35.3775]
[1745462497953,6.6654,149.98,149.95,7.39321497]
[1745462498659,7.39321497,149.97,149.91,6.6684]
[1745462498853,7.39321497,149.97,149.92,7.39321497]
[1745462499558,6.6668,149.95,149.92,7.39321497]
[1745462500257,6.6664,149.96,149.92,7.39321497]
[1745462500457,7.39321497,150.0,149.94,7.39321497]
[1745462500759,6.6661,149.97,149.94,7.39321497]
[1745462501254,6.6653,149.99,149.94,14.06031497]
[1745462501459,34.21611497,150.01,149.9,25.48]
[1745462501760,7.39321497,149.99,149.94,7.39321497]
[1745462502058,6.6666,149.96,149.94,7.39321497]
[1745462503462,7.39321497,149.99,149.94,7.39321497]
[1745462504161,6.6666,149.96,149.94,7.39321497]
[1745462505259,7.39321497,149.97,149.91,6.6684]
[1745462505566,7.39321497,149.95,149.9,32.87321497]
[1745462506160,6.6672,149.94,149.9,32.87321497]
[1745462507466,25.48,149.97,149.92,7.39321497]
[1745462507866,25.48,149.97,149.94,7.39321497]
[1745462508163,7.39321497,149.99,149.94,7.39321497]
[1745462508368,6.6661,149.97,149.94,7.39321497]
[1745462508758,25.5,150.0,149.76,43.54451557]
[1745462508759,7.39321497,149.96,149.76,43.54451557]
[1745462508967,7.39321497,149.94,149.89,7.39321497]
[1745462509966,7.39321497,149.94,149.85,29.4589]
[1745462510167,7.39321497,149.94,149.88,7.39321497]
[1745462510369,9.37571497,149.95,149.9,7.39321497]
[1745462511266,6.6673,149.94,149.9,7.39321497]
[1745462513563,1.9825,149.95,149.9,14.06181497]
[1745462513770,1.9825,149.95,149.92,7.39321497]
[1745462513959,25.5,149.96,149.92,7.39321497]
[1745462514868,27.5599,149.99,149.94,7.39321497]
[1745462515071,27.5599,149.99,149.96,7.39321497]
[1745462515471,6.6658,149.98,149.96,7.39321497]
[1745462516974,6.6659,149.97,149.92,6.6679]
[1745462517173,34.95311497,149.99,149.94,7.39321497]
[1745462517572,6.6662,149.97,149.94,7.39321497]
[1745462526575,32.89321497,149.99,149.94,7.39321497]
[1745462526874,35.09131497,150.02,149.98,7.39321497]
[1745462527267,6.6644,150.01,149.98,7.39321497]